bitfinex-derivatives/quotes_ETHF0:USTF0_20250209
["timestamp","ask_amount","ask_price","bid_price","bid_amount"]
[1739098970513,5.46313613,2666.5,2665.8,10.0091]
[1739098970712,1.5368,2666.5,2665.8,10.0091]
[1739098975110,4.14833694,2666.4,2665.8,9.4348]
[1739098975513,7.35613694,2666.4,2665.8,9.4348]
[1739098976720,7.73613694,2666.4,2665.8,9.4348]
[1739098979724,7.73613694,2666.4,2665.7,0.00563486]
[1739098980025,3.2078,2666.1,2665.7,0.00563486]
[1739098980220,1.6844,2666.0,2665.7,0.00563486]
[1739098980417,7.38705,2666.0,2665.7,0.00563486]
[1739098982928,5.72405,2666.0,2665.7,0.00563486]
[1739098983232,1.6844,2666.0,2665.7,0.00563486]
[1739098984528,4.09053908,2665.9,2665.7,0.00563486]
[1739098984719,1.6844,2666.0,2665.7,0.00563486]
[1739098986630,1.1163,2666.0,2665.7,0.00563486]
[1739098986833,1.1163,2666.0,2665.7,1.65503486]
[1739098987130,1.4965,2666.0,2665.7,1.65503486]
[1739098987724,1.4965,2666.0,2665.8,6.227]
[1739098988028,0.9341,2666.0,2665.8,6.227]
[1739098988220,0.3802,2666.0,2665.8,6.227]
[1739098988823,3.2078,2666.8,2666.0,6.227]
[1739098989433,3.2078,2666.8,2666.2,9.4348]
[1739098989630,3.2078,2666.8,2666.3,1.096]
[1739098991932,3.2078,2666.8,2666.4,0.5914]
[1739098992335,1.6999,2666.9,2666.4,0.5914]
[1739098992528,1.1192,2666.9,2666.4,0.5914]
[1739098994929,1.1192,2666.9,2666.5,3.2078]
[1739098997531,0.5476,2666.9,2666.5,3.2078]
[1739098998234,0.5888,2667.2,2666.5,3.2078]
[1739098998429,0.554,2667.1,2666.5,3.2078]
[1739098999226,0.554,2667.1,2666.4,0.5914]
[1739099002637,0.554,2667.1,2666.5,6.227]
[1739099012833,3.7618,2667.1,2666.5,6.227]
[1739099015931,3.7618,2667.1,2666.4,4.09364041]
[1739099015932,3.7618,2667.1,2666.4,3.2078]
[1739099016135,3.2078,2666.7,2666.1,50.53420861]
[1739099016438,1.72113486,2666.6,2666.1,50.2348]
[1739099017030,4.349007,2666.5,2666.1,50.2348]
[1739099019343,1.72113486,2666.6,2666.1,50.2348]
[1739099019645,0.56943486,2666.6,2666.1,50.8277]
[1739099019837,0.00563486,2666.6,2666.4,9.4348]
[1739099020038,0.00563486,2666.6,2666.5,1.7621]
[1739099020741,0.00563486,2666.6,2666.5,0.6015]
[1739099022441,0.00563486,2666.6,2666.4,9.4348]
[1739099022842,0.00563486,2666.6,2666.4,3.2078]
[1739099023147,0.00563486,2666.6,2666.1,44.0078]
[1739099023339,1.74073486,2666.6,2666.1,44.0078]
[1739099023542,3.96066587,2666.5,2666.1,44.0078]
[1739099026843,3.96066587,2666.5,2666.1,50.2348]
[1739099027140,1.74073486,2666.6,2666.2,0.5624]
[1739099030257,1.74073486,2666.6,2666.1,50.2348]
[1739099030456,4.22801121,2666.5,2666.1,9.4348]
[1739099030861,4.22801121,2666.5,2666.1,50.2348]
[1739099032353,1.74073486,2666.6,2666.1,50.2348]
[1739099033258,1.74073486,2666.6,2666.2,0.578]
[1739099033458,1.74073486,2666.6,2666.3,0.5506]
[1739099033759,1.74073486,2666.6,2666.3,1.1374]
[1739099034659,1.74073486,2666.6,2666.2,6.227]
[1739099034862,4.05760737,2666.5,2666.2,6.227]
[1739099035156,1.74073486,2666.6,2666.2,6.8196]
[1739099036352,1.74073486,2666.6,2666.3,0.6013]
[1739099036559,1.74073486,2666.6,2666.3,1.1591]
[1739099037959,1.14873486,2666.6,2666.3,1.1591]
[1739099038560,0.57443486,2666.6,2666.3,1.1591]
[1739099039965,0.57443486,2666.6,2666.2,9.4348]
[1739099042158,0.00563486,2666.6,2666.3,0.5807]
[1739099042766,0.00563486,2666.6,2666.3,6.8077]
[1739099042966,0.00563486,2666.6,2666.5,9.4348]
[1739099047167,0.00563486,2666.6,2666.5,10.5678]
[1739099050471,0.44100775,2667.1,2666.5,10.5678]
[1739099050882,3.2078,2667.2,2666.5,10.5678]
[1739099051770,0.00563486,2667.1,2666.5,10.5678]
[1739099053671,0.60843486,2667.1,2666.5,10.5678]
[1739099054171,0.60843486,2667.1,2666.5,7.36]
[1739099054371,0.60843486,2667.1,2666.7,6.227]
[1739099054871,0.5996,2667.0,2666.7,6.227]
[1739099055960,0.60843486,2667.1,2666.7,6.7838]
[1739099057873,0.60843486,2667.1,2666.7,6.227]
[1739099059974,0.60843486,2667.1,2666.7,6.52554292]
[1739099060176,0.60843486,2667.1,2666.7,6.227]
[1739099060676,4.062418,2667.0,2666.7,6.227]
[1739099060973,0.5609,2666.9,2666.7,6.227]
[1739099061175,0.597,2666.8,2666.7,6.227]
[1739099062677,0.60843486,2667.1,2666.7,6.227]
[1739099062878,0.60843486,2667.1,2666.7,7.3656]
[1739099063272,0.60843486,2667.1,2666.8,47.027]
[1739099065980,0.60843486,2667.1,2666.8,40.8]
[1739099066183,4.05179898,2667.0,2666.8,40.8]
[1739099066377,1.1846,2666.9,2666.6,9.4348]
[1739099066883,1.1846,2666.9,2666.7,40.8]
[1739099067578,0.60843486,2667.1,2666.7,47.027]
[1739099068079,1.1522,2667.0,2666.7,47.027]
[1739099069184,0.60843486,2667.1,2666.7,47.027]
[1739099069582,0.60843486,2667.1,2666.9,3.2078]
[1739099069780,0.60843486,2667.1,2667.0,0.5792]
[1739099069986,0.60843486,2667.1,2667.0,1.1299]
[1739099069987,0.00563486,2667.1,2667.0,1.1299]
[1739099072785,0.00563486,2667.1,2667.0,0.5792]
[1739099073379,0.00563486,2667.1,2667.0,6.8062]
[1739099073984,0.00563486,2667.1,2667.0,6.227]
[1739099074384,0.00563486,2667.1,2666.8,6.227]
[1739099077878,0.00563486,2667.1,2666.7,40.8]
[1739099078282,0.00563486,2667.1,2666.7,47.027]
[1739099079282,0.00563486,2667.1,2666.9,3.2078]
[1739099079787,0.00563486,2667.1,2667.0,0.5658]
[1739099080190,0.00563486,2667.1,2667.0,1.1555]
[1739099083390,0.00563486,2667.1,2667.0,7.3825]
[1739099090207,0.00563486,2667.1,2667.0,7.68841829]
[1739099097403,0.00563486,2667.1,2667.0,6.8167]
[1739099100618,0.00563486,2667.1,2667.0,6.227]
[1739099101814,10.02298464,2667.1,2666.0,3.2078]
[1739099102114,4.3466,2667.0,2666.0,3.2078]
[1739099102321,4.9334,2667.0,2666.3,3.2078]
[1739099102527,0.3879,2667.0,2666.7,3.2078]
[1739099102720,0.3879,2667.0,2666.7,9.4348]
[1739099103021,0.00563486,2667.1,2666.9,6.227]
[1739099103312,0.00563486,2667.1,2667.0,4.3607]
[1739099103718,0.00563486,2667.1,2667.0,10.5877]
[1739099103921,0.00563486,2667.1,2667.0,51.3877]
[1739099105224,0.5722,2667.8,2667.0,51.3877]
[1739099105422,0.5722,2667.8,2667.4,3.2078]
[1739099105821,0.5456,2667.7,2667.4,3.2078]
[1739099106221,0.5456,2667.7,2667.3,0.00562419]
[1739099109526,0.5456,2667.7,2667.4,6.68781225]
[1739099109723,0.5456,2667.7,2667.5,7.4183]
[1739099112436,0.5456,2667.7,2667.5,1.1913]
[1739099113032,0.5456,2667.7,2667.6,0.5727]
[1739099113732,0.5456,2667.7,2667.5,0.6033]
[1739099114133,0.5456,2667.7,2667.5,0.90597551]
[1739099114936,0.5456,2667.7,2667.5,1.46987551]
[1739099115832,0.5456,2667.7,2667.5,0.6033]
[1739099117433,0.00562419,2667.8,2667.5,0.6033]
[1739099118333,0.00562419,2667.8,2667.7,3.2078]
[1739099120540,0.5629,2668.3,2667.7,14.26330694]
[1739099120732,0.5511,2668.4,2667.8,7.3548]
[1739099121134,0.5511,2668.4,2667.9,40.8]
[1739099121336,0.5511,2668.4,2668.0,0.5534]
[1739099122737,0.5511,2668.4,2667.7,3.5075433]
[1739099122938,0.5511,2668.4,2667.7,3.2078]
[1739099123835,0.6016,2668.3,2667.7,3.2078]
[1739099124034,8.03104548,2668.3,2667.7,3.2078]
[1739099124439,3.8094,2668.3,2667.7,3.2078]
[1739099125343,3.8094,2668.3,2667.8,0.5953]
[1739099125543,3.8094,2668.3,2667.9,0.5986]
[1739099125943,3.8094,2668.3,2667.7,3.2078]
[1739099126243,3.8094,2668.3,2667.7,3.8064]
[1739099129545,3.2078,2668.3,2667.7,3.8064]
[1739099132647,3.2078,2668.3,2667.8,6.227]
[1739099135744,1.1299,2668.4,2667.8,6.227]
[1739099135947,4.3377,2668.4,2667.8,9.72899271]
[1739099138649,4.3377,2668.4,2667.8,3.50199271]
[1739099138948,4.03536355,2668.3,2667.8,3.2078]
[1739099139839,4.03536355,2668.3,2667.6,41.3534]
[1739099141651,3.2078,2668.1,2667.6,41.3534]
[1739099141852,0.5566,2668.0,2667.6,41.3534]
[1739099142052,0.5577,2667.9,2667.6,41.3534]
[1739099142551,7.52394066,2667.8,2667.6,40.8]
[1739099142751,7.52394066,2667.8,2667.3,0.00562419]
[1739099143252,7.52394066,2667.8,2667.4,40.8]
[1739099145854,7.52394066,2667.8,2667.3,0.00562419]
[1739099146147,3.2078,2667.5,2667.3,0.00562419]
[1739099146356,1.7169,2667.4,2667.3,0.00562419]
[1739099146554,5.73136618,2667.4,2667.3,0.00562419]
[1739099147147,5.73136618,2667.4,2667.1,3.2078]
[1739099147148,11.73136618,2667.4,2667.1,3.2078]
[1739099147349,3.2078,2667.2,2666.8,44.0078]
[1739099147759,3.90439221,2667.1,2666.8,3.2078]
[1739099149555,3.2078,2666.9,2666.7,0.00562419]
[1739099150053,4.10172167,2666.8,2666.7,0.00562419]
[1739099150553,4.66632167,2666.8,2666.7,0.00562419]
[1739099152557,4.10172167,2666.8,2666.7,0.00562419]
[1739099152761,3.2078,2666.9,2666.7,0.00562419]
[1739099153662,3.91302425,2666.8,2666.7,0.00562419]
[1739099153850,4.46382425,2666.8,2666.7,0.00562419]
[1739099154057,12.08482425,2666.8,2666.2,0.5536]
[1739099154355,3.2078,2666.3,2666.0,0.5594]
[1739099154557,0.5519,2666.2,2666.0,41.3594]
[1739099155359,0.5519,2666.2,2666.0,0.5594]
[1739099156762,3.2078,2666.1,2666.0,0.5594]
[1739099163760,3.2078,2666.1,2665.9,40.8]
[1739099163952,3.2078,2666.1,2665.8,1.15632419]
[1739099163953,7.71504389,2666.1,2665.8,0.58812419]
[1739099164157,8.30854389,2666.1,2665.8,0.58812419]
[1739099164667,8.30854389,2666.1,2665.8,0.00562419]
[1739099167464,3.2078,2666.1,2665.8,0.00562419]
[1739099168455,4.10841253,2666.0,2665.8,0.00562419]
[1739099168655,4.70871253,2666.0,2665.8,0.00562419]
[1739099174866,3.2078,2665.9,2665.8,0.00562419]
[1739099175271,7.43160076,2665.9,2665.8,0.00562419]
[1739099177581,7.43160076,2665.9,2665.8,0.00562419]
[1739099177976,3.2078,2665.9,2665.8,0.00562419]
[1739099178878,7.24840206,2665.9,2665.8,0.00562419]
[1739099182875,7.84970206,2665.9,2665.8,0.00562419]
[1739099183785,7.84970206,2665.9,2664.8,9.4288]
[1739099184079,3.2078,2665.3,2664.9,43.01044283]
[1739099184383,3.2078,2665.3,2665.0,0.46184283]
[1739099184583,3.2078,2665.3,2664.9,42.5486]
[1739099184885,3.2078,2665.3,2665.0,0.46191318]
[1739099185079,3.2078,2665.3,2664.9,42.5486]
[1739099185383,3.2078,2665.3,2665.0,0.4619583]
[1739099185583,3.2078,2665.3,2664.9,42.5486]
[1739099185784,3.2078,2665.3,2665.0,0.461895]
[1739099185979,3.2078,2665.3,2664.9,42.5486]
[1739099186176,3.2078,2665.3,2665.0,0.46189802]
[1739099186377,3.2078,2665.3,2664.9,42.5486]
[1739099186579,3.2078,2665.3,2665.0,0.46185337]
[1739099186779,3.2078,2665.3,2664.9,42.5486]
[1739099186976,3.2078,2665.3,2665.0,0.46183674]
[1739099187187,3.2078,2665.3,2665.1,0.46188071]
[1739099187387,3.2078,2665.3,2664.9,42.5486]
[1739099187589,3.2078,2665.3,2665.0,0.4618767]
[1739099187788,3.2078,2665.3,2664.9,42.5486]
[1739099188090,3.2078,2665.3,2665.0,0.46196326]
[1739099188991,3.2078,2665.3,2664.9,42.5486]
[1739099189185,3.2078,2665.3,2665.0,0.46203712]
[1739099189384,3.2078,2665.3,2664.9,42.5486]
[1739099189788,3.2078,2665.3,2665.0,0.46197236]
[1739099189987,3.2078,2665.3,2664.9,42.5486]
[1739099190288,3.2078,2665.3,2665.0,0.46192233]
[1739099190479,3.2078,2665.3,2664.9,42.5486]
[1739099190685,3.2078,2665.3,2665.0,0.46190273]
[1739099190985,3.2078,2665.3,2665.1,0.46186197]
[1739099191186,3.2078,2665.3,2664.9,42.5486]
[1739099191388,3.2078,2665.3,2665.0,0.46187249]
[1739099191588,3.2078,2665.3,2664.9,42.5486]
[1739099191787,3.2078,2665.3,2665.0,0.46196681]
[1739099191988,3.2078,2665.3,2664.9,42.5486]
[1739099192192,3.7848,2665.3,2665.0,0.46205118]
[1739099192489,3.7848,2665.3,2664.9,42.5486]
[1739099193494,3.2078,2665.3,2664.9,42.5486]
[1739099194092,4.0046646,2665.2,2664.9,42.5486]
[1739099194296,0.5844,2665.1,2664.9,1.7486]
[1739099194794,0.5789,2665.0,2664.9,1.7486]
[1739099194994,3.7867,2665.0,2664.9,1.7486]
[1739099195587,3.7867,2665.0,2664.9,1.1503]
[1739099195790,10.97576005,2665.0,2664.3,1.1596]
[1739099195993,3.2078,2664.5,2663.9,3.2078]
[1739099196195,0.5731,2664.4,2664.0,0.604]
[1739099196500,3.2078,2664.2,2664.0,0.604]
[1739099196896,3.98984352,2664.1,2664.0,0.604]
[1739099197090,3.98984352,2664.1,2663.8,0.00562419]
[1739099197494,3.2078,2663.9,2663.8,0.00562419]
[1739099198488,7.53315863,2663.9,2663.8,0.00562419]
[1739099199395,9.15515863,2663.9,2663.3,0.6051]
[1739099199594,3.2078,2663.4,2663.3,0.6051]
[1739099201300,0.00562419,2663.6,2663.3,0.6051]
[1739099202801,0.00562419,2663.6,2663.4,0.5456]
[1739099203197,0.00562419,2663.6,2663.5,41.3887]
[1739099203897,3.2078,2664.0,2663.5,41.3887]
[1739099205196,3.21342419,2664.0,2663.5,41.3887]
[1739099223318,0.00562419,2664.0,2663.5,41.3887]
[1739099223516,3.21342419,2664.0,2663.5,41.3887]
[1739099224112,3.21342419,2664.0,2663.6,0.461862]
[1739099224421,3.21342419,2664.0,2663.5,41.3887]
[1739099224422,3.21342419,2664.0,2663.5,0.88819195]
[1739099224617,3.21342419,2664.0,2663.6,0.46223384]
[1739099224817,3.21342419,2664.0,2663.6,40.8]
[1739099226112,3.21342419,2664.0,2663.7,0.46269045]
[1739099226306,3.21342419,2664.0,2663.8,0.6046]
[1739099226509,3.21342419,2664.0,2663.9,0.5641]
[1739099230222,3.21342419,2664.0,2663.9,1.1581]
[1739099231113,0.575,2664.6,2663.9,1.1581]
[1739099231320,3.2078,2664.7,2664.0,3.67063553]
[1739099231627,3.2078,2664.7,2664.1,0.46283553]
[1739099231925,3.2078,2664.7,2664.2,0.46283553]
[1739099232122,3.2078,2664.7,2664.3,1.05593553]
[1739099232418,3.21342419,2664.7,2664.4,1.02493553]
[1739099232615,3.21342419,2664.7,2664.5,0.46283553]
[1739099232817,3.21342419,2664.7,2664.4,1.1663]
[1739099233013,3.21342419,2664.7,2664.5,0.46263632]
[1739099233209,3.21342419,2664.7,2664.4,1.1663]
[1739099234734,3.2078,2665.3,2664.6,3.2078]
[1739099235914,0.00562419,2665.2,2664.7,0.46176334]
[1739099236115,0.00562419,2665.2,2664.8,1.04184061]
[1739099236419,0.00562419,2665.2,2664.9,0.5928]
[1739099236616,0.00562419,2665.2,2664.9,4.3832]
[1739099236816,0.00562419,2665.2,2665.0,0.46130112]
[1739099237112,0.00562419,2665.2,2665.1,0.47301571]
[1739099237317,0.00562419,2665.2,2664.9,6.0052]
[1739099237513,0.00562419,2665.2,2665.0,0.47268772]
[1739099237714,3.2078,2665.6,2664.9,12.2262]
[1739099238018,2.994,2665.8,2665.2,3.2078]
[1739099238221,0.5906,2666.1,2665.3,41.3801]
[1739099238431,0.5906,2666.1,2665.4,0.5568]
[1739099238617,0.5906,2666.1,2665.5,3.2078]
[1739099238816,0.00562419,2666.0,2665.5,3.7637]
[1739099239022,0.00562419,2666.0,2665.5,0.5559]
[1739099241219,0.00562419,2666.0,2665.5,3.7637]
[1739099243825,0.00562419,2666.0,2665.5,11.79050682]
[1739099244024,0.00562419,2666.0,2665.8,3.2078]
[1739099244225,0.00562419,2666.0,2665.9,1.136]
[1739099244825,3.2078,2666.8,2665.9,1.136]
[1739099245022,3.2078,2666.8,2666.0,0.5937]
[1739099245727,3.2078,2666.8,2666.2,3.2078]
[1739099245930,3.2078,2666.8,2666.0,0.5937]
[1739099246136,3.21149613,2666.8,2666.2,0.00562419]
[1739099247114,0.00369613,2666.8,2666.3,40.8]
[1739099247318,0.00369613,2666.8,2666.5,3.2078]
[1739099248023,0.00369613,2666.8,2666.5,3.764]
[1739099248224,3.21149613,2666.8,2666.3,40.8]
[1739099248428,3.21149613,2666.8,2666.2,2.92262419]
[1739099248926,3.21149613,2666.8,2666.2,43.72262419]
[1739099249628,0.00369613,2666.8,2666.2,53.15142419]
[1739099249923,0.00369613,2666.8,2666.5,3.2078]
[1739099250124,0.00369613,2666.8,2666.6,0.5695]
[1739099250524,3.21149613,2666.8,2666.2,49.94362419]
[1739099250726,3.21149613,2666.8,2666.2,50.69773761]
[1739099251322,3.21149613,2666.8,2666.2,47.78073761]
[1739099251522,3.21149613,2666.8,2666.2,50.98853761]
[1739099252128,3.21149613,2666.8,2666.2,41.55973761]
[1739099252338,3.21149613,2666.8,2666.2,0.57512419]
[1739099252728,3.21149613,2666.8,2666.2,41.37512419]
[1739099253130,3.21149613,2666.8,2666.2,0.57512419]
[1739099253726,3.2078,2666.3,2666.2,0.00562419]
[1739099256424,3.7692,2666.4,2666.2,0.00562419]
[1739099256621,0.5614,2666.4,2666.2,0.00562419]
[1739099258727,3.2078,2666.7,2666.2,0.00562419]
[1739099258927,0.5882,2666.6,2666.2,0.00562419]
[1739099259832,0.5882,2666.6,2666.3,40.8]
[1739099260230,4.34076028,2666.5,2666.3,40.8]
[1739099261139,0.5882,2666.6,2666.3,40.8]
[1739099263140,3.2078,2666.4,2666.2,0.00562419]
[1739099263633,4.35297928,2666.3,2666.2,0.00562419]
[1739099268929,7.56077928,2666.3,2666.2,0.00562419]
[1739099272937,4.35297928,2666.3,2666.2,0.00562419]
[1739099273139,7.56077928,2666.3,2666.2,0.00562419]
[1739099274837,7.56077928,2666.3,2665.9,40.8]
[1739099275137,1.1678,2666.2,2665.9,40.8]
[1739099275634,0.5537,2666.1,2665.9,40.8]
[1739099277346,3.2078,2666.0,2665.9,40.8]
[1739099277542,3.2078,2666.0,2665.8,0.5927]
[1739099277543,7.4683267,2666.0,2665.7,0.00562419]
[1739099285750,13.4683267,2666.0,2664.9,0.5626]
[1739099285947,3.2078,2665.4,2665.0,1.1241]
[1739099286148,3.2078,2665.4,2665.0,41.9241]
[1739099286349,4.15744772,2665.3,2665.0,41.9241]
[1739099291956,4.15744772,2665.3,2665.0,1.1241]
[1739099292154,3.2078,2665.1,2664.9,0.00562419]
[1739099292450,0.6031,2665.0,2664.9,0.00562419]
[1739099292655,5.16021676,2665.0,2664.9,0.00562419]
[1739099293252,6.78221676,2665.0,2664.9,0.00562419]
[1739099293460,6.78221676,2665.0,2664.6,3.2078]
[1739099295958,6.78221676,2665.0,2664.7,0.5866]
[1739099300564,3.2078,2664.8,2664.7,0.5866]
[1739099301059,7.48766263,2664.8,2664.7,0.5866]
[1739099301264,7.48766263,2664.8,2664.5,0.00562419]
[1739099301560,0.5984,2664.7,2664.5,0.00562419]
[1739099301966,4.16389839,2664.6,2664.5,0.00562419]
[1739099322367,4.16389839,2664.6,2664.1,0.5607]
[1739099322571,3.2078,2664.4,2664.1,0.5607]
[1739099323189,4.76170387,2664.3,2664.1,0.5607]
[1739099332490,3.2078,2664.4,2664.1,0.5607]
[1739099334280,3.2078,2664.4,2664.2,0.47535743]
[1739099334475,3.2078,2664.4,2664.3,1.05071668]
[1739099336287,2.994,2664.6,2664.3,1.05071668]
[1739099336490,2.994,2664.6,2664.4,0.47531668]
[1739099336786,2.994,2664.6,2664.5,1.04250388]
[1739099337388,2.994,2664.6,2664.5,0.5673]
[1739099337588,0.5792,2664.8,2664.5,0.5673]
[1739099339086,3.2078,2664.9,2664.5,0.5673]
[1739099339487,3.2078,2664.9,2664.6,0.4749653]
[1739099339692,3.2078,2664.9,2664.7,1.05842619]
[1739099339893,3.2078,2664.9,2664.7,0.5835]
[1739099340090,0.5871,2665.2,2664.8,1.06108716]
[1739099340286,3.2078,2665.3,2664.9,0.5655]
[1739099340694,4.21491721,2665.2,2664.9,0.5655]
[1739099341393,4.8298,2665.6,2664.9,0.5655]
[1739099357306,3.2078,2665.6,2664.9,0.5655]
[1739099357506,3.2078,2665.6,2665.0,40.8]
[1739099357707,3.2078,2665.6,2665.1,0.5842]
[1739099358212,3.2078,2665.6,2665.2,0.5572]
[1739099358505,3.2078,2665.6,2665.3,0.594]
[1739099358907,3.2078,2665.9,2665.3,6.815]
[1739099360112,3.21342419,2665.9,2665.3,6.82062419]
[1739099361511,0.00562419,2665.9,2665.3,6.82062419]
[1739099362031,0.00562419,2665.9,2665.4,6.69424487]
[1739099362215,0.00562419,2665.9,2665.4,6.221]
[1739099363112,0.00562419,2665.9,2665.5,40.8]
[1739099363314,0.00562419,2665.9,2665.6,7.4008]
[1739099374229,0.00562419,2665.9,2665.7,40.8]
[1739099374524,0.00562419,2665.9,2665.8,0.5876]
[1739099388336,3.92714599,2665.9,2665.3,0.00562419]
[1739099388635,3.2078,2665.7,2665.4,0.5979]
[1739099389439,0.5877,2665.8,2665.4,0.5979]
[1739099389836,4.21822058,2665.7,2665.4,0.5979]
[1739099391936,0.00562419,2665.9,2665.4,0.5979]
[1739099392136,1.11952419,2665.9,2665.4,0.5979]
[1739099393149,0.00562419,2665.9,2665.4,0.5979]
[1739099393739,0.59412419,2665.9,2665.4,0.5979]
[1739099394133,0.00562419,2665.9,2665.5,0.47513796]
[1739099394333,0.00562419,2665.9,2665.6,40.8]
[1739099394634,0.00562419,2665.9,2665.7,0.5644]
[1739099394936,0.00562419,2665.9,2665.8,0.5667]
[1739099395240,0.00562419,2665.9,2665.8,7.26273461]
[1739099397336,0.00562419,2665.9,2665.8,7.56302032]
[1739099397539,3.2078,2666.7,2665.8,7.56302032]
[1739099397737,3.2078,2666.7,2665.9,6.69603461]
[1739099398036,3.2078,2666.7,2666.0,6.69603461]
[1739099398242,3.2078,2666.7,2666.1,1.03653461]
[1739099398542,3.2078,2666.7,2666.2,0.5842]
[1739099398737,3.21342419,2666.7,2666.2,6.8052]
[1739099398942,3.21342419,2666.7,2666.3,6.69512888]
[1739099399133,3.21342419,2666.7,2666.3,6.221]
[1739099400437,0.00562419,2666.7,2666.6,3.2078]
[1739099400628,0.00562419,2666.7,2666.6,4.83461554]
[1739099400835,0.00562419,2666.7,2666.6,42.42681554]
[1739099402042,0.00562419,2666.7,2666.6,42.42678694]
[1739099403843,0.00562419,2666.7,2666.6,42.60990681]
[1739099404040,0.00562419,2666.7,2666.6,1.1533]
[1739099404244,0.00562419,2666.7,2666.6,0.5918]
[1739099406038,0.00562419,2666.7,2666.6,1.06522504]
[1739099406345,0.00562419,2666.7,2666.6,1.06520855]
[1739099407646,0.00562419,2666.7,2666.6,1.06515276]
[1739099407846,0.00562419,2666.7,2666.6,41.86515276]
[1739099410655,0.00562419,2666.7,2666.6,41.86505837]
[1739099410863,0.00562419,2666.7,2666.6,41.3918]
[1739099412458,0.00562419,2666.7,2666.6,41.9455]
[1739099412657,0.00562419,2666.7,2666.6,48.1665]
[1739099416362,0.00562419,2666.7,2666.6,41.9455]
[1739099416562,0.00562419,2666.7,2666.6,40.8]
[1739099416760,0.00562419,2666.7,2666.3,0.5715]
[1739099416761,4.11674754,2666.7,2666.3,0.5715]
[1739099417163,4.11674754,2666.7,2666.4,40.8]
[1739099419252,3.2078,2666.6,2666.0,3.2078]
[1739099419665,3.2078,2666.6,2666.1,40.8]
[1739099420166,3.2078,2666.6,2666.2,0.5868]
[1739099420362,3.2078,2666.6,2666.3,0.6042]
[1739099420561,0.00562419,2666.7,2666.3,1.1919]
[1739099420965,3.96359925,2666.6,2666.3,1.1919]
[1739099423564,3.96359925,2666.6,2666.4,0.47312985]
[1739099423865,3.96359925,2666.6,2666.3,1.1919]
[1739099426271,3.96359925,2666.6,2666.4,0.47384882]
[1739099426487,3.96359925,2666.6,2666.3,1.1919]
[1739099426666,3.96359925,2666.6,2666.4,0.47399444]
[1739099426971,3.96359925,2666.6,2666.5,0.47396501]
[1739099427167,0.00562419,2666.7,2666.5,0.47396501]
[1739099427370,0.00562419,2666.7,2666.6,0.47396501]
[1739099428588,0.00562419,2666.7,2666.3,1.1919]
[1739099428872,0.00562419,2666.7,2666.4,0.47419527]
[1739099429072,0.00562419,2666.7,2666.5,0.47419527]
[1739099429273,0.00562419,2666.7,2666.3,1.1919]
[1739099429478,0.00562419,2666.7,2666.4,0.47421855]
[1739099429666,0.00562419,2666.7,2666.5,0.4742422]
[1739099429865,0.00562419,2666.7,2666.3,1.1919]
[1739099430070,0.00562419,2666.7,2666.4,0.47425251]
[1739099430268,0.00562419,2666.7,2666.5,0.47425251]
[1739099430468,0.00562419,2666.7,2666.3,1.1919]
[1739099430972,0.00562419,2666.7,2666.4,0.47430394]
[1739099431675,0.00562419,2666.7,2666.5,0.47430394]
[1739099431878,0.00562419,2666.7,2666.3,1.1919]
[1739099432078,0.00562419,2666.7,2666.4,0.47434617]
[1739099432281,0.00562419,2666.7,2666.5,0.47434967]
[1739099432473,0.00562419,2666.7,2666.3,1.1919]
[1739099432676,0.00562419,2666.7,2666.4,0.47436418]
[1739099432872,0.00562419,2666.7,2666.3,1.1919]
[1739099433073,0.00562419,2666.7,2666.4,0.47435539]
[1739099433276,0.00562419,2666.7,2666.3,1.1919]
[1739099433477,0.00562419,2666.7,2666.4,0.47438534]
[1739099433678,0.00562419,2666.7,2666.3,1.1919]
[1739099433879,0.00562419,2666.7,2666.4,0.47441338]
[1739099434084,0.00562419,2666.7,2666.3,1.1919]
[1739099434273,0.00562419,2666.7,2666.4,0.47442627]
[1739099434476,0.00562419,2666.7,2666.3,1.1919]
[1739099434676,0.00562419,2666.7,2666.4,0.47444388]
[1739099434980,0.00562419,2666.7,2666.3,1.1919]
[1739099435178,0.00562419,2666.7,2666.4,0.47440917]
[1739099435375,0.00562419,2666.7,2666.5,0.47440917]
[1739099435576,0.00562419,2666.7,2666.3,1.1919]
[1739099435782,0.00562419,2666.7,2666.4,0.47441485]
[1739099435981,0.00562419,2666.7,2666.5,0.47441485]
[1739099436181,0.00562419,2666.7,2666.3,1.1919]
[1739099436383,0.00562419,2666.7,2666.4,0.47439024]
[1739099436584,0.00562419,2666.7,2666.5,0.47439024]
[1739099436885,0.00562419,2666.7,2666.3,1.1919]
[1739099437082,0.00562419,2666.7,2666.4,0.47438758]
[1739099437285,3.21342419,2666.7,2666.5,0.47438758]
[1739099437582,3.21342419,2666.7,2666.3,1.1919]
[1739099437779,3.21342419,2666.7,2666.4,0.47438134]
[1739099438082,3.21342419,2666.7,2666.5,0.47438134]
[1739099438277,3.21342419,2666.7,2666.3,1.1919]
[1739099438473,3.21342419,2666.7,2666.4,0.47437945]
[1739099438682,3.21342419,2666.7,2666.5,0.47437945]
[1739099438883,3.21342419,2666.7,2666.3,1.1919]
[1739099439085,3.21342419,2666.7,2666.4,0.47439644]
[1739099439284,3.21342419,2666.7,2666.5,0.47439403]
[1739099439486,3.21342419,2666.7,2666.3,1.1919]
[1739099439685,3.21342419,2666.7,2666.4,0.47439324]
[1739099439887,3.21342419,2666.7,2666.3,1.1919]
[1739099440182,3.21342419,2666.7,2666.4,0.47439221]
[1739099440388,3.21342419,2666.7,2666.3,1.1919]
[1739099440583,3.21342419,2666.7,2666.4,0.47439263]
[1739099440790,3.21342419,2666.7,2666.5,0.47439263]
[1739099440996,3.21342419,2666.7,2666.3,1.1919]
[1739099441184,3.21342419,2666.7,2666.4,0.47443428]
[1739099441486,3.21342419,2666.7,2666.5,0.47443428]
[1739099441687,3.21342419,2666.7,2666.3,1.1919]
[1739099441887,3.21342419,2666.7,2666.4,0.47443448]
[1739099442086,3.21342419,2666.7,2666.5,0.47443448]
[1739099442395,3.21342419,2666.7,2666.3,1.1919]
[1739099442586,3.21342419,2666.7,2666.4,0.4744817]
[1739099442784,3.21342419,2666.7,2666.5,0.4744817]